bitfinex-derivatives/quotes_SOLF0:USTF0_20250520
["timestamp","ask_amount","ask_price","bid_price","bid_amount"]
[1747739260528,0.04247689,165.93,165.9,0.04436198]
[1747739261330,0.04247689,165.93,165.92,6.0252]
[1747739271641,0.04247689,165.93,165.9,67.05006198]
[1747739271832,0.04247689,165.93,165.9,6.07006198]
[1747739272237,0.04247689,165.93,165.9,0.04436198]
[1747739272840,6.0254,165.92,165.9,0.04436198]
[1747739273133,0.04247689,165.93,165.9,0.04436198]
[1747739273833,6.0256,165.91,165.9,0.04436198]
[1747739274937,0.04247689,165.93,165.9,0.04436198]
[1747739275344,6.0256,165.91,165.9,0.04436198]
[1747739275844,6.0255,165.92,165.9,0.04436198]
[1747739276939,6.0256,165.91,165.9,0.04436198]
[1747739278243,6.0256,165.91,165.9,6.198e-05]
[1747739280446,0.04247689,165.93,165.9,6.198e-05]
[1747739280842,0.04247689,165.93,165.9,6.02576198]
[1747739281245,0.04247689,165.93,165.9,6.198e-05]
[1747739281741,6.0256,165.91,165.9,6.198e-05]
[1747739283845,6.0253,165.92,165.9,6.198e-05]
[1747739284240,0.04247689,165.93,165.9,6.198e-05]
[1747739284438,6.06737689,165.93,165.9,6.198e-05]
[1747739284748,6.06737689,165.93,165.9,6.02596198]
[1747739285045,6.06737689,165.93,165.9,6.198e-05]
[1747739285351,0.04247689,165.93,165.9,6.198e-05]
[1747739285650,6.0252,165.92,165.9,6.198e-05]
[1747739285851,0.04247689,165.93,165.9,6.198e-05]
[1747739286450,6.06747689,165.93,165.9,6.198e-05]
[1747739287546,0.04247689,165.93,165.9,6.198e-05]
[1747739287751,0.04247689,165.93,165.9,6.02586198]
[1747739288251,6.06737689,165.93,165.9,6.02586198]
[1747739288753,0.04247689,165.93,165.9,6.198e-05]
[1747739289054,6.0252,165.92,165.9,6.198e-05]
[1747739290952,6.0256,165.91,165.9,6.198e-05]
[1747739291450,6.0254,165.92,165.9,6.198e-05]
[1747739291955,0.04247689,165.93,165.9,6.198e-05]
[1747739292161,6.0256,165.91,165.9,6.198e-05]
[1747739298159,67.49182683,165.92,165.8,62.12012875]
[1747739298356,67.49182683,165.92,165.81,5.9398]
[1747739298551,67.49182683,165.92,165.84,6.0279]
[1747739298758,6.0272,165.87,165.84,6.0279]
[1747739299057,0.04610315,165.87,165.84,0.04517073]
[1747739299257,6.0276,165.86,165.84,0.04517073]
[1747739299859,6.0277,165.85,165.84,0.04517073]
[1747739301856,6.53182683,165.86,165.79,7.18982875]
[1747739302059,6.53182683,165.86,165.79,1.16012875]
[1747739302272,6.53182683,165.86,165.78,1.50765048]
[1747739302960,0.04483295,165.84,165.8,0.03951803]
[1747739303161,61.00483295,165.84,165.8,0.03951803]
[1747739303564,6.53182683,165.83,165.8,0.03951803]
[1747739304058,61.00483295,165.84,165.8,0.03951803]
[1747739304450,6.0289,165.82,165.8,6.06891803]
[1747739304656,61.00483295,165.84,165.8,0.03951803]
[1747739305963,6.0292,165.81,165.8,0.03951803]
[1747739306462,61.00483295,165.84,165.8,0.03951803]
[1747739306663,6.0289,165.82,165.8,0.03951803]
[1747739306861,61.00483295,165.84,165.8,0.03951803]
[1747739307056,6.0292,165.82,165.8,0.03951803]
[1747739307664,6.0292,165.81,165.8,0.03951803]
[1747739310567,6.0288,165.82,165.8,0.03951803]
[1747739311769,61.00483295,165.84,165.8,0.03951803]
[1747739311965,0.04483295,165.84,165.8,0.03951803]
[1747739312266,0.04483295,165.84,165.8,61.01951803]
[1747739313064,0.04483295,165.84,165.83,6.0285]
[1747739313272,60.98,165.91,165.8,61.01951803]
[1747739313461,60.98,165.91,165.8,60.98]
[1747739313663,6.0258,165.91,165.87,6.0268]
[1747739314365,6.07147697,165.91,165.87,6.07202334]
[1747739315167,6.026,165.9,165.87,6.07202334]
[1747739315367,0.04567697,165.91,165.87,0.04522334]
[1747739315776,6.0266,165.88,165.79,1.50727036]
[1747739316070,6.53182683,165.88,165.79,1.50727036]
[1747739316470,6.53182683,165.88,165.78,62.9864]
[1747739316871,6.0283,165.84,165.81,0.04008213]
[1747739318173,6.0286,165.83,165.81,0.04008213]
[1747739319474,6.0288,165.82,165.81,0.04008213]
[1747739325376,67.1488,165.82,165.81,0.04008213]
[1747739327373,67.69676189,165.85,165.81,0.04008213]
[1747739327871,6.0285,165.83,165.81,0.04008213]
[1747739328169,67.69676189,165.85,165.81,0.04008213]
[1747739329276,6.0288,165.83,165.81,0.04008213]
[1747739329772,6.0288,165.82,165.81,0.04008213]
[1747739333467,6.0286,165.83,165.81,0.04008213]
[1747739333673,61.16493506,165.85,165.81,0.04008213]
[1747739335576,6.0287,165.83,165.81,0.04008213]
[1747739336477,6.0288,165.82,165.81,0.04008213]
[1747739340970,6.0321,165.73,165.72,1.16012875]
[1747739341171,12.0593,165.8,165.72,1.16012875]
[1747739341172,61.12,165.77,165.72,2.66813052]
[1747739341780,61.12,165.82,165.72,2.66813052]
[1747739341988,0.03983661,165.79,165.73,4.0121]
[1747739342180,6.0307,165.77,165.74,6.0315]
[1747739342884,6.0307,165.77,165.73,10.0441]
[1747739344691,6.0304,165.78,165.74,6.0316]
[1747739344886,6.0304,165.78,165.74,61.12]
[1747739345387,6.0307,165.77,165.74,61.12]
[1747739345686,0.03983661,165.79,165.74,61.12]
[1747739348078,6.031,165.77,165.74,61.12]
[1747739348281,6.031,165.77,165.74,67.1516]
[1747739348689,6.0304,165.78,165.74,61.12]
[1747739348886,6.0304,165.78,165.75,6.0313]
[1747739349092,0.03983661,165.79,165.74,61.12]
[1747739349988,6.0308,165.77,165.74,67.1516]
[1747739350792,6.0305,165.78,165.75,6.0312]
[1747739351288,0.03983661,165.79,165.76,6.031]
[1747739351790,0.03983661,165.79,165.74,61.12]
[1747739351993,0.03983661,165.79,165.78,6.0303]
[1747739352493,0.03983661,165.79,165.77,6.0305]
[1747739354397,0.03983661,165.79,165.76,61.08]
[1747739354794,6.0305,165.78,165.76,61.08]
[1747739355302,6.0306,165.77,165.76,61.08]
[1747739356298,6.07013661,165.79,165.76,61.08]
[1747739356599,0.03983661,165.79,165.76,61.08]
[1747739357002,6.0305,165.78,165.76,61.08]
[1747739358004,6.55225799,165.88,165.76,61.08]
[1747739358200,6.55225799,165.88,165.8,6.0293]
[1747739358405,6.0285,165.83,165.77,1.9768]
[1747739358702,6.0285,165.83,165.77,3.48450559]
[1747739358896,6.07381071,165.82,165.79,6.0296]
[1747739359096,0.04491071,165.82,165.79,0.04012836]
[1747739359299,6.5971687,165.82,165.79,0.04012836]
[1747739359605,6.0295,165.8,165.79,0.04012836]
[1747739375110,6.0323,165.73,165.7,63.0568]
[1747739375321,67.63225799,165.78,165.7,61.08]
[1747739375620,6.0328,165.71,165.7,61.08]
[1747739377220,6.0328,165.71,165.7,62.58850158]
[1747739377414,6.0328,165.71,165.7,1.50850158]
[1747739378720,6.0328,165.71,165.66,1.16012875]
[1747739378721,6.0343,165.67,165.66,1.16012875]
[1747739381232,6.0343,165.67,165.64,6.0353]
[1747739381527,6.08014373,165.68,165.64,6.0353]
[1747739382030,0.04604373,165.68,165.64,6.0353]
[1747739382229,0.04604373,165.68,165.63,6.0357]
[1747739382429,0.04604373,165.68,165.62,61.1]
[1747739383227,6.0348,165.66,165.62,67.1358]
[1747739383925,6.0348,165.66,165.63,6.0357]
[1747739384231,61.18,165.65,165.6,1.16012875]
[1747739384424,6.59673871,165.64,165.6,1.16012875]
[1747739384622,6.0365,165.61,165.6,1.16012875]
[1747739384827,67.2165,165.61,165.6,1.16012875]
[1747739385029,6.0368,165.6,165.59,3.09051628]
[1747739385232,61.18,165.61,165.59,3.09051628]
[1747739386123,0.04448072,165.64,165.59,3.09051628]
[1747739386321,61.22448072,165.64,165.59,3.09051628]
[1747739386524,61.22448072,165.64,165.62,6.0359]
[1747739386721,61.22448072,165.64,165.59,3.09051628]
[1747739387738,67.25998072,165.64,165.6,6.0368]
[1747739388034,67.25998072,165.64,165.59,3.09051628]
[1747739388427,67.25998072,165.64,165.59,9.12741628]
[1747739388727,67.77673871,165.64,165.59,3.09051628]
[1747739389933,6.0359,165.63,165.59,3.09051628]
[1747739390132,67.77673871,165.64,165.59,9.12741628]
[1747739390733,6.0364,165.62,165.59,9.12741628]
[1747739391230,67.77673871,165.64,165.59,3.09051628]
[1747739391428,61.24448072,165.64,165.59,3.09051628]
[1747739392124,61.24448072,165.64,165.62,6.0359]
[1747739392328,61.24448072,165.64,165.59,3.09051628]
[1747739392733,0.04448072,165.64,165.59,3.09051628]
[1747739392937,0.04448072,165.64,165.6,1.9978]
[1747739393136,0.04448072,165.64,165.63,6.0357]
[1747739394531,61.2,165.68,165.6,1.9978]
[1747739394929,61.2,165.68,165.61,6.0363]
[1747739395125,6.0345,165.67,165.61,6.0363]
[1747739395539,0.04237346,165.66,165.62,0.04169082]
[1747739395835,6.0356,165.64,165.62,0.04169082]
[1747739396039,0.04237346,165.66,165.62,0.04169082]
[1747739396337,6.0357,165.63,165.62,0.04169082]
[1747739398333,6.0368,165.6,165.59,3.09051628]
[1747739401040,6.0388,165.55,165.52,6.0396]
[1747739401337,0.03841721,165.55,165.51,1.9225]
[1747739401738,61.2,165.6,165.52,61.22]
[1747739402141,61.22,165.63,165.52,61.22]
[1747739402545,6.0362,165.62,165.58,6.0372]
[1747739402742,6.07771275,165.62,165.58,0.03824889]
[1747739403046,6.07771275,165.62,165.58,6.07554889]
[1747739403554,0.04151275,165.62,165.58,6.07554889]
[1747739404149,0.04151275,165.62,165.58,0.03824889]
[1747739404758,6.07771275,165.62,165.58,6.07574889]
[1747739404946,0.04151275,165.62,165.58,0.03824889]
[1747739405146,0.04151275,165.62,165.61,6.0365]
[1747739405650,67.2548,165.66,165.62,6.0358]
[1747739406159,61.22,165.66,165.62,6.0358]
[1747739406456,67.29423925,165.66,165.62,6.07792865]
[1747739408248,67.29423925,165.66,165.63,6.0357]
[1747739408849,67.29423925,165.66,165.62,6.07812865]
[1747739409353,6.0353,165.65,165.62,0.04212865]
[1747739410057,6.0353,165.65,165.62,6.07802865]
[1747739410350,61.25943925,165.66,165.62,6.07802865]
[1747739411459,67.29443925,165.66,165.62,6.07802865]
[1747739412557,6.035,165.65,165.62,0.04212865]
[1747739412949,6.035,165.65,165.62,6.07802865]
[1747739413451,6.035,165.65,165.62,0.04212865]
[1747739413954,67.29423925,165.66,165.62,0.04212865]
[1747739414161,67.29423925,165.66,165.63,6.0357]
[1747739414560,6.07423925,165.66,165.63,6.0357]
[1747739414861,6.07423925,165.66,165.62,6.07802865]
[1747739416160,6.07423925,165.66,165.63,6.0357]
[1747739417759,0.03943925,165.66,165.65,6.035]
[1747739418468,61.66,165.71,165.68,6.0336]
[1747739418862,6.0326,165.72,165.68,6.0336]
[1747739419273,0.04463391,165.72,165.68,0.04634166]
[1747739419965,0.04463391,165.72,165.68,61.70634166]
[1747739420371,0.04463391,165.72,165.7,6.033]
[1747739420866,0.04463391,165.72,165.71,6.0328]
[1747739422269,12.58265799,165.78,165.74,6.0316]
[1747739423171,6.07507919,165.78,165.74,6.07580865]
[1747739423976,6.0306,165.77,165.74,0.04420865]
[1747739424272,0.04467919,165.78,165.74,0.04420865]
[1747739424474,6.0307,165.77,165.74,0.04420865]
[1747739424670,0.04467919,165.78,165.74,0.04420865]
[1747739425171,6.0309,165.77,165.74,0.04420865]
[1747739426071,6.0311,165.76,165.74,0.04420865]
[1747739426273,6.59693718,165.78,165.74,0.04420865]
[1747739426673,6.0314,165.75,165.74,0.04420865]
[1747739431177,6.0309,165.77,165.74,0.04420865]
[1747739431377,0.04467919,165.78,165.74,0.04420865]
[1747739432382,6.0314,165.75,165.74,0.04420865]
[1747739433668,6.0311,165.76,165.74,0.04420865]
[1747739433870,0.04467919,165.78,165.74,0.04420865]
[1747739434479,6.0309,165.77,165.74,0.04420865]
[1747739434684,0.04467919,165.78,165.74,0.04420865]
[1747739435078,6.0314,165.75,165.74,0.04420865]
[1747739435676,6.0311,165.76,165.74,0.04420865]
[1747739436686,6.0308,165.77,165.74,0.04420865]
[1747739437285,0.04467919,165.78,165.74,0.04420865]
[1747739437981,6.0311,165.76,165.74,0.04420865]
[1747739444186,6.0308,165.77,165.74,6.07590865]
[1747739444687,6.0308,165.77,165.74,0.04420865]
[1747739445086,6.0311,165.76,165.74,0.04420865]
[1747739445586,0.04467919,165.78,165.74,0.04420865]
[1747739446487,6.0314,165.75,165.74,0.04420865]
[1747739447788,0.04467919,165.78,165.74,0.04420865]
[1747739448282,6.0314,165.75,165.74,0.04420865]
[1747739448483,67.1314,165.75,165.74,0.04420865]
[1747739450989,61.1,165.75,165.69,6.0335]
[1747739451687,6.55225799,165.74,165.65,61.1]
[1747739451888,6.55225799,165.74,165.62,62.26012875]
[1747739452197,0.04237481,165.7,165.66,0.03938844]
[1747739452488,61.14237481,165.7,165.66,0.03938844]
[1747739453191,6.0343,165.67,165.66,0.03938844]
[1747739457098,6.034,165.68,165.66,0.03938844]
[1747739457303,63.04887481,165.7,165.66,0.03938844]
[1747739457984,0.04237481,165.7,165.66,0.03938844]
[1747739458590,6.07577481,165.7,165.67,6.0341]
[1747739459995,0.04237481,165.7,165.66,61.15938844]
[1747739460290,167.23264535,165.79,165.67,2.0871]
[1747739460484,167.23264535,165.79,165.68,1.9266]
[1747739460684,160.68038736,165.79,165.68,1.9266]
[1747739461186,0.04402666,165.75,165.72,0.03895494]
[1747739461392,0.04402666,165.75,165.73,6.0321]
[1747739461891,0.04402666,165.75,165.72,0.03895494]
[1747739462096,0.04402666,165.75,165.74,6.0317]
[1747739463895,72.09200963,165.84,165.72,6.59121293]
[1747739464099,72.09200963,165.84,165.72,6.55225799]
[1747739464301,78.12010963,165.84,165.79,6.0299]
[1747739464495,10.97200963,165.84,165.77,61.12]
[1747739464802,0.04145138,165.82,165.79,0.04342243]
[1747739465000,0.04145138,165.82,165.79,61.14342243]
[1747739465504,0.04145138,165.82,165.8,6.0295]
[1747739466204,0.04145138,165.82,165.79,61.14342243]
[1747739466205,0.04145138,165.82,165.81,6.0292]
[1747739466413,0.04145138,165.82,165.79,61.14342243]
[1747739466414,10.97200963,165.93,165.79,61.14342243]
[1747739466705,61.1,165.92,165.84,6.0278]
[1747739466999,6.55225799,165.9,165.79,61.1]
[1747739467399,0.03887253,165.86,165.83,0.03944973]
[1747739467605,6.0283,165.84,165.83,0.03944973]
[1747739469406,6.03,165.79,165.76,1.50776681]
[1747739469910,6.0304,165.78,165.75,67.1311]
[1747739470109,6.0304,165.78,165.75,6.0311]
[1747739470407,6.07556415,165.78,165.75,6.07587479]
[1747739470609,6.07556415,165.78,165.75,0.04477479]
[1747739470801,0.04516415,165.78,165.75,0.04477479]
[1747739472110,0.04516415,165.78,165.75,6.07587479]
[1747739473916,0.04516415,165.78,165.75,0.04477479]
[1747739474612,6.031,165.76,165.75,0.04477479]
[1747739482515,67.051,165.76,165.75,0.04477479]
[1747739483627,61.02,165.76,165.68,2.0639]
[1747739483823,61.02,165.76,165.66,63.1347]
[1747739484713,0.04112204,165.73,165.69,0.03889885]
[1747739485021,6.0334,165.7,165.69,0.03889885]
[1747739485219,61.04,165.72,165.69,0.03889885]
[1747739485922,6.0331,165.71,165.69,0.03889885]
[1747739486121,61.04,165.72,165.69,0.03889885]
[1747739486520,6.0331,165.71,165.69,0.03889885]
[1747739486723,61.04,165.72,165.69,0.03889885]
[1747739487824,6.0332,165.7,165.69,0.03889885]
[1747739490625,61.04,165.72,165.69,0.03889885]
[1747739492630,6.0332,165.7,165.69,0.03889885]
[1747739494928,0.04112204,165.73,165.69,0.03889885]
[1747739495530,67.0905,165.78,165.75,6.0312]
[1747739496434,67.0905,165.78,165.74,6.0317]
[1747739496627,67.13512778,165.78,165.74,6.07027336]
[1747739497127,61.10462778,165.78,165.74,0.03857336]
[1747739498233,6.0314,165.75,165.74,0.03857336]
[1747739499834,6.033,165.71,165.67,61.04]
[1747739500031,1.9632,165.77,165.67,61.04]
[1747739500432,1.9632,165.77,165.7,6.0329]
[1747739500830,1.9632,165.77,165.72,0.0410845]
[1747739501038,6.0322,165.73,165.72,0.0410845]
[1747739501533,0.03959224,165.75,165.72,6.0735845]
[1747739501737,0.03959224,165.75,165.72,0.0410845]
[1747739502044,6.07119224,165.75,165.72,6.0732845]
[1747739503238,6.0318,165.74,165.72,6.0732845]
[1747739503933,6.0318,165.74,165.72,0.0410845]
[1747739504236,6.0321,165.73,165.72,0.0410845]
[1747739506340,10.97200963,165.84,165.72,6.0810845]
[1747739506530,10.97200963,165.84,165.71,71.52229352]
[1747739506734,10.97200963,165.84,165.83,6.0285]
[1747739508144,0.04602611,165.85,165.84,6.0281]
[1747739508629,0.04602611,165.85,165.82,0.04525564]
[1747739510135,6.07402611,165.85,165.82,0.04525564]
[1747739511143,6.0283,165.84,165.82,0.04525564]
[1747739511343,0.04602611,165.85,165.82,0.04525564]
[1747739511635,6.0316,165.75,165.69,2.24558328]
[1747739511842,61.02,165.77,165.69,2.24558328]
[1747739512230,10.48687915,165.8,165.71,1.16012875]
[1747739512442,61.02,165.79,165.71,1.16012875]
[1747739512641,0.03872299,165.77,165.73,0.04510621]
[1747739512841,6.0314,165.75,165.73,0.04510621]
[1747739513641,0.03872299,165.77,165.73,61.06510621]
[1747739514742,61.02,165.82,165.73,61.06510621]
[1747739514943,61.02,165.82,165.74,2.077]
[1747739515338,61.02,165.82,165.79,6.0299]
[1747739515538,61.02,165.85,165.74,2.077]
[1747739515740,0.03996124,165.81,165.78,6.07496885]
[1747739516244,0.03996124,165.81,165.79,6.0299]
[1747739516442,0.03996124,165.81,165.78,0.04496885]
[1747739517144,0.03996124,165.81,165.8,6.0295]
[1747739517344,10.97200963,165.88,165.78,0.04496885]
[1747739517541,10.97200963,165.88,165.78,12.51637915]
[1747739517744,10.97200963,165.88,165.87,6.027]
[1747739517942,1.48000963,165.88,165.87,6.027]
[1747739518641,0.04259084,165.89,165.88,6.0266]
[1747739519838,61.0,165.97,165.86,61.0601287]
[1747739520041,6.0231,165.98,165.86,61.02]
[1747739520240,67.0231,165.98,165.86,61.02]
[1747739520441,6.0235,165.97,165.93,6.0247]
[1747739520642,61.0,165.98,165.86,61.02]
[1747739520845,0.04446747,165.94,165.9,0.04571916]
[1747739521146,0.04446747,165.94,165.92,6.0251]
[1747739521649,0.04446747,165.94,165.91,6.0255]
[1747739523646,0.04446747,165.94,165.9,0.04571916]
[1747739524853,6.0254,165.92,165.9,0.04571916]
[1747739527455,6.0249,165.93,165.9,0.04571916]
[1747739527753,0.04446747,165.94,165.9,0.04571916]
[1747739528053,6.0255,165.92,165.9,0.04571916]
[1747739528257,61.02446747,165.94,165.9,0.04571916]
[1747739528548,6.0254,165.92,165.9,0.04571916]
[1747739528754,61.02446747,165.94,165.9,0.04571916]
[1747739529353,6.0255,165.91,165.9,0.04571916]
[1747739531560,6.0252,165.93,165.9,0.04571916]
[1747739531749,0.04446747,165.94,165.9,0.04571916]
[1747739532458,0.04446747,165.94,165.9,6.07161916]
[1747739532958,6.025,165.93,165.9,6.07161916]
[1747739533356,0.04446747,165.94,165.9,0.04571916]
[1747739533560,6.0255,165.91,165.9,0.04571916]
[1747739538261,0.04446747,165.94,165.9,0.04571916]
[1747739538868,6.06916747,165.94,165.91,6.0253]
[1747739539067,0.04446747,165.94,165.9,0.04571916]
[1747739539470,6.06916747,165.94,165.9,6.07131916]
[1747739540168,6.06916747,165.94,165.91,6.0254]
[1747739540762,0.04446747,165.94,165.93,6.0248]
[1747739547292,681.69143829,166.13,165.93,6.0248]
[1747739547293,62.02,166.09,165.93,6.02]
[1747739547474,62.02,166.09,165.91,62.02]
[1747739547475,14.41027915,166.08,165.91,62.02]
[1747739547876,10.48687915,166.04,165.91,62.02]
[1747739548084,62.02,166.03,165.91,62.02]
[1747739548271,0.04485566,165.99,165.95,0.04318827]
[1747739548474,0.04485566,165.99,165.96,6.0235]
[1747739548475,0.03986542,165.99,165.96,6.0235]
[1747739549584,0.03986542,165.99,165.97,6.0233]
[1747739554683,6.06276542,165.99,165.96,6.0236]
[1747739554878,0.03986542,165.99,165.95,0.04407309]
[1747739555286,0.03986542,165.99,165.95,6.06797309]
[1747739555287,6.0233,165.98,165.95,6.06797309]
[1747739555583,0.03986542,165.99,165.95,6.06797309]
[1747739555986,6.0231,165.98,165.95,6.06797309]
[1747739556987,6.0235,165.97,165.95,6.06797309]
[1747739557188,0.03986542,165.99,165.95,0.04407309]
[1747739557376,6.0233,165.98,165.95,0.04407309]
[1747739558190,6.0234,165.97,165.95,0.04407309]
[1747739558883,6.0237,165.96,165.95,0.04407309]
[1747739565389,6.0235,165.97,165.95,0.04407309]
[1747739565890,61.54,165.98,165.95,0.04407309]
[1747739566186,6.0234,165.97,165.95,0.04407309]
[1747739568397,67.5632,165.98,165.95,6.06807309]
[1747739569493,67.5632,165.98,165.95,0.04407309]
[1747739569788,6.0235,165.97,165.95,0.04407309]
[1747739569994,61.54,165.98,165.95,0.04407309]
[1747739570293,6.0237,165.96,165.95,0.04407309]
[1747739572094,6.0235,165.97,165.95,0.04407309]
[1747739573500,6.0237,165.96,165.95,0.04407309]
[1747739578509,6.0236,165.97,165.95,0.04407309]
[1747739579200,61.54,165.98,165.95,0.04407309]
[1747739579201,6.0237,165.96,165.95,0.04407309]
[1747739580005,6.0235,165.97,165.95,0.04407309]
[1747739580209,61.54,165.98,165.95,0.04407309]
[1747739580705,6.0234,165.97,165.95,0.04407309]
[1747739582806,6.0231,165.98,165.95,6.06817309]
[1747739583102,0.03986542,165.99,165.95,0.04407309]
[1747739583304,0.03986542,165.99,165.98,6.023]
[1747739583910,72.56042403,166.04,165.96,1.9693]
[1747739584205,11.02042403,166.04,165.97,61.54]
[1747739584406,11.02042403,166.04,166.02,6.0213]
[1747739585210,11.02042403,166.04,166.03,6.0212]
[1747739586013,0.04499363,166.05,166.03,6.0212]
[1747739586511,6.06549363,166.05,166.02,6.0214]
[1747739587012,0.04499363,166.05,166.03,6.0212]
[1747739588011,0.04499363,166.05,166.04,6.0208]
[1747739588216,0.04499363,166.05,166.01,0.04290136]
[1747739588513,0.04499363,166.05,166.03,6.021]
[1747739590011,0.04499363,166.05,166.02,6.0214]
[1747739590210,0.04499363,166.05,166.01,61.56290136]
[1747739590409,0.04499363,166.05,166.01,0.04290136]
[1747739592113,6.0215,166.03,166.01,0.04290136]
[1747739592415,0.04499363,166.05,166.01,6.06470136]
[1747739592607,6.021,166.04,166.01,6.06470136]
[1747739593913,0.04499363,166.05,166.01,0.04290136]
[1747739594813,6.0216,166.02,166.01,0.04290136]
[1747739597415,6.0235,165.97,165.95,61.02]
[1747739597616,61.02,166.03,165.92,61.02]
[1747739598210,61.02,166.05,165.95,6.53783108]
[1747739598415,0.0423163,166.02,165.98,0.04448249]
[1747739598618,0.0423163,166.02,166.01,6.0219]
[1747739601618,0.0423163,166.02,165.98,0.04483132]
[1747739602117,6.0227,165.99,165.98,0.04483132]
[1747739603510,6.0241,165.95,165.94,1.16012875]
[1747739604620,0.03969616,165.96,165.94,1.16012875]
[1747739605021,0.03969616,165.96,165.94,62.18012875]
[1747739605208,0.03969616,165.96,165.95,6.0241]
[1747739609830,9.616e-05,165.96,165.95,7.53024606]
[1747739610222,9.616e-05,165.96,165.95,14.06807714]
[1747739610426,61.02,166.06,166.02,6.0214]
[1747739610427,6.0207,166.05,166.02,6.0214]
[1747739611231,6.0207,166.05,166.01,6.0218]
[1747739611426,6.06316757,166.05,166.01,6.06315653]
[1747739611633,0.04246757,166.05,166.01,6.06315653]
[1747739612632,6.06316757,166.05,166.01,6.06315653]
[1747739613039,0.04246757,166.05,166.01,6.06315653]
[1747739614534,6.021,166.04,166.01,6.06315653]
[1747739615835,6.0212,166.03,166.01,6.06315653]
[1747739616939,6.021,166.04,166.01,6.06315653]
[1747739617841,6.021,166.04,166.02,6.0216]
[1747739619139,6.021,166.04,166.01,6.06315653]
[1747739620135,0.04246757,166.05,166.01,0.04135653]
[1747739621132,6.0216,166.02,166.01,0.04135653]
[1747739621633,0.04246757,166.05,166.01,0.04135653]
[1747739621837,6.0212,166.04,166.01,6.06305653]
[1747739622236,6.0212,166.04,166.01,0.04135653]
[1747739622539,6.0212,166.04,166.01,6.06315653]
[1747739622735,6.57451088,166.05,165.96,1.50595411]
[1747739622944,6.53579393,166.03,165.96,1.50595411]
[1747739623137,62.9118,166.02,165.96,1.50595411]
[1747739623845,0.04563886,166.01,165.97,0.04040301]
[1747739624337,6.023,165.98,165.97,0.04040301]
[1747739625241,6.53579393,166.0,165.9,61.0]
[1747739625742,6.0246,165.94,165.91,6.0253]
[1747739626141,6.06844467,165.94,165.91,6.0662805]
[1747739630340,0.04384467,165.94,165.91,0.0409805]
[1747739631046,6.06834467,165.94,165.92,6.0252]
[1747739631435,6.06834467,165.94,165.91,0.0409805]
[1747739631638,6.0248,165.93,165.91,6.0664805]
[1747739632745,6.0248,165.93,165.91,0.0409805]
[1747739637848,6.06854467,165.94,165.91,6.0664805]
[1747739639957,6.0248,165.93,165.91,0.0409805]
[1747739641352,6.0252,165.92,165.91,0.0409805]
[1747739647762,6.025,165.93,165.91,0.0409805]
[1747739648268,0.04384467,165.94,165.91,0.0409805]
[1747739648864,0.04384467,165.94,165.92,6.025]
[1747739649053,0.04384467,165.94,165.91,0.0409805]
[1747739649563,6.0252,165.92,165.91,0.0409805]
[1747739660370,6.0252,165.92,165.91,8.05e-05]
[1747739660570,6.0275,165.86,165.84,61.04]
[1747739661066,6.0275,165.86,165.83,6.0284]
[1747739661572,6.06747789,165.86,165.83,6.06714182]
[1747739662574,6.06747789,165.86,165.84,6.0281]
[1747739662769,0.03997789,165.86,165.84,6.0281]
[1747739663175,6.06737789,165.86,165.83,6.06704182]
[1747739663373,6.06737789,165.86,165.83,0.03874182]
[1747739663573,0.03997789,165.86,165.83,0.03874182]
[1747739663776,6.06737789,165.86,165.83,6.06704182]
[1747739664869,0.03997789,165.86,165.83,0.03874182]
[1747739665577,0.03997789,165.86,165.84,1.50688073]
[1747739665763,0.03997789,165.86,165.85,61.06]
[1747739666075,0.03997789,165.86,165.85,67.0877]
[1747739667379,0.03997789,165.86,165.84,1.50688073]
[1747739667882,0.03997789,165.86,165.85,1.50688073]
[1747739668184,6.06737789,165.86,165.85,1.50688073]
[1747739668981,6.0277,165.85,165.84,1.16012875]
[1747739671084,6.0281,165.84,165.83,0.03874182]
[1747739672595,6.0279,165.85,165.83,0.03874182]
[1747739674193,6.0281,165.84,165.83,0.03874182]
[1747739677295,67.64249071,165.86,165.76,61.06]
[1747739677506,4.0374,165.83,165.76,61.06]
[1747739677806,6.0302,165.79,165.76,67.091]
[1747739678106,6.07135821,165.79,165.76,67.13276818]
[1747739679609,6.07135821,165.79,165.76,61.10176818]
[1747739680306,6.0304,165.78,165.76,61.10176818]
[1747739680497,0.04115821,165.79,165.76,61.10176818]
[1747739680909,0.04115821,165.79,165.76,0.04176818]